[Event "AUT Bundesliga 2022-23"]
[Site "Jenbach"]
[Date "2022.11.04"]
[Round "2.21"]
[White "Atlas, Valery"]
[Black "Krassowizkij, Jaroslaw"]
[Result "1/2-1/2"]
[ECO "C54"]
[WhiteElo "2412"]
[BlackElo "2439"]
[Annotator "TA"]
[PlyCount "47"]
[EventDate "2022.11.03"]
[EventType "team-tourn"]
[EventCountry "AUT"]
[SourceTitle "playchess.com"]
[Source "ChessBase"]
[SourceQuality "1"]
[TimeControl "40/5400+30:1800+30"]

{[%evp 12,47,25,14,35,25,39,33,32,37,30,23,43,35,35,45,17,17,18,20,12,14,18,18,18,14,16,15,13,20,8,0,0,0,7,0,14,0]} 1. e4 {[%emt 0:00:05] Huebner,R} e5 {[%emt 0:00:05]} 2. Nf3 {[%emt 0:00:09]} Nc6 {[%emt 0:00:04]} 3. Bc4 {[%emt 0:00:12]} Bc5 {[%emt 0:00:08]} 4. c3 {[%emt 0:00:13]} Nf6 {[%emt 0:00:06]} 5. d3 {[%emt 0:00:09]} d6 {[%emt 0:00:24]} 6. O-O {[%emt 0:00:24]} O-O {[%emt 0:01:28]} 7. Re1 {[%emt 0:02:35] 7.Nbd2 is setting a new trend.} a5 {[%emt 0:00:11] C54: Giuoco Piano: 4 c3 Nf6, main lines with 5 d4 and 5 d3.} 8. Bg5 {[%emt 0:04:32][%cal Bc1g5,Bg5h4,Bh4g3][%mdl 32]} h6 {[%emt 0:01:26]} 9. Bh4 {[%emt 0:00:13]} g5 {[%emt 0:00:06] White is slightly better.} 10. Bg3 {[%emt 0:00:11]} Nh7 {[%emt 0:07:24]} 11. d4 {[%emt 0:06:01]} Bb6 {[%emt 0:00:27]} 12. dxe5 {[%emt 0:03:32]} h5 {[%emt 0:00:29] [#] Hoping for ...h4.} 13. h4 $1 {[%emt 0:02:54]} ({Much worse is} 13. exd6 h4 14. Be5 g4 15. dxc7 Qxd1 16. Rxd1 gxf3 $11) 13... Bg4 {[%emt 0:07:28]} 14. Nbd2 {[%emt 0:04:22] The position is equal.} Nxe5 {[%emt 0:00:51] White must now prevent ...gxh4.} 15. Be2 {[%emt 0:00:14][%cal Bc4e2,Be2f3,Bf3h5][%mdl 32]} ({Of course not} 15. Bxe5 dxe5 16. Nf1 Qxd1 17. Rexd1 Bxf3 18. gxf3 gxh4 $15) 15... Nxf3+ {[%emt 0:02:17]} 16. Nxf3 {[%emt 0:00:17] [#]} Re8 $146 {[%emt 0:03:52]} ({Predecessor:} 16... Bxf3 17. Bxf3 gxh4 18. Bh2 h3 19. e5 Qh4 20. Qd2 dxe5 21. Rxe5 Rad8 22. Qe2 Ng5 23. Bxb7 {0-1 (50) Van Foreest,J (2612)-Ding,L (2813) Wijk aan Zee 2019 CBM 188 [Huebner,R]}) 17. Qd2 {[%emt 0:07:07][%cal Rh4g5]} Bxf3 {[%emt 0:02:47]} 18. Bxf3 {[%emt 0:00:31]} gxh4 {[%emt 0:00:05]} 19. Bf4 {[%emt 0:01:41]} Qf6 {[%emt 0:06:53]} 20. Bxh5 {[%emt 0:02:50]} Qg7 {[%emt 0:00:07]} 21. Bh6 {[%emt 0:00:34] A strong pair of Bishops.} Qf6 {[%emt 0:04:02]} 22. Bf4 {[%emt 0:04:40] Prevents Re5.} Qg7 {[%emt 0:02:00]} 23. Bh6 {[%emt 0:01:36]} Qf6 {[%emt 0:00:09]} 24. Bf4 {Inhibits Re5.  Weighted Error Value: White=0.03 (flawless) /Black=0.02 (flawless)} 1/2-1/2

[Event "AUT Bundesliga 2022-23"]
[Site "Jenbach"]
[Date "2022.11.04"]
[Round "2.22"]
[White "Richter, Nils"]
[Black "Brunner, Nicolas"]
[Result "1/2-1/2"]
[ECO "E04"]
[WhiteElo "2395"]
[BlackElo "2448"]
[Annotator "TA"]
[PlyCount "81"]
[EventDate "2022.11.03"]
[EventType "team-tourn"]
[EventCountry "AUT"]
[SourceTitle "playchess.com"]
[Source "ChessBase"]
[SourceQuality "1"]
[TimeControl "40/5400+30:1800+30"]

{[%evp 11,81,19,29,1,5,12,10,6,3,5,10,4,14,12,8,3,0,6,2,10,0,0,0,-18,-22,-41,-29,-27,-6,-31,-44,-63,-9,-7,-8,-4,-4,-4,-4,-4,-5,-5,-3,-5,-5,-5,-5,-7,-6,-10,-5,-8,-9,-20,0,-29,-19,-16,0,0,0,0,0,0,0,0,0,0,0,0,0,-206]} 1. d4 {[%emt 0:00:02]} Nf6 {[%emt 0:00:06]} 2. c4 {[%emt 0:00:08]} e6 {[%emt 0:00:03]} 3. g3 {[%emt 0:00:12]} d5 {[%emt 0:00:10][%cal Bd7d5,Bd5c4,Bc4c3][%mdl 32]} 4. Bg2 {[%emt 0:00:12]} dxc4 {[%emt 0:00:33]} 5. Nf3 {[%emt 0:00:10]} a6 {[%emt 0:00:08]} 6. O-O {[%emt 0:00:49]} Nc6 {[%emt 0:00:04]} 7. Nbd2 {[%emt 0:00:37][%mdl 1024] White has compensation. E04: Open Catalan: 5 Nf3.} b5 {[%emt 0:00:47]} 8. b3 {[%emt 0:01:18]} c3 {[%emt 0:00:36] Inhibits Bb2.} (8... Nxd4 9. Ne5 Nd5 10. e3 $16) 9. Nb1 {[%emt 0:00:18] [#] And now Ne5 would win.} b4 $1 {[%emt 0:00:32] Threatens to win with ...Bb7.} 10. a3 {[%emt 0:00:51]} Rb8 {[%emt 0:00:44]} 11. axb4 {[%emt 0:02:33]} Bxb4 {[%emt 0:00:07][%cal Oe6e5]} 12. Qd3 {[%emt 0:04:50]} e5 $132 {[%emt 0:07:15][%mdl 2048] Black is fighting back} 13. Nxe5 {[%emt 0:12:00]} (13. Nxc3 {is interesting.} exd4 14. Na4 O-O 15. Bb2) 13... Nxe5 {[%emt 0:00:29]} (13... Nxd4 14. e3 (14. Nc6 Nxc6 15. Bxc6+ Bd7 $11) 14... Ne6 15. Qc2 $14 (15. Qc4 Qd6 $14)) 14. dxe5 {[%emt 0:00:02]} Qxd3 {[%emt 0:00:09]} 15. exd3 {[%emt 0:00:09]} Nd7 {[%emt 0:01:18][%cal Bf6d7,Bd7e5,Be5d3][%mdl 32]} 16. d4 {[%emt 0:12:54] Prevents Nc5.} O-O {[%emt 0:05:53]} 17. Na3 {[%emt 0:03:58]} c5 {[%emt 0:06:35]} 18. Nc2 {[%emt 0:08:07]} ({Don't play} 18. Be3 cxd4 19. Bxd4 Nc5 $17) 18... cxd4 {[%emt 0:08:59]} 19. Nxd4 {[%emt 0:01:36] Nc6 is the strong threat.} Bc5 {[%emt 0:11:02]} 20. Be3 {[%emt 0:09:30][%cal Bc1e3,Be3d4,Bd4c3][%mdl 32]} Nxe5 {[%emt 0:03:03]} 21. Ra5 {[%emt 0:12:29]} Bxd4 {[%emt 0:07:44]} (21... Nd3 $15 22. Be4 Bb6) 22. Bxd4 $11 {[%emt 0:00:02]} Nd3 {[%emt 0:06:23] [#] Hoping for ...c2.} 23. Bxc3 {[%emt 0:04:55] A strong pair of Bishops.} Rxb3 {[%emt 0:00:22]} 24. Bd4 {[%emt 0:03:59]} Rd8 {[%emt 0:09:23]} 25. Be3 {[%emt 0:00:02]} Nb4 {[%emt 0:03:12]} 26. h4 {[%emt 0:03:20]} Bg4 {[%emt 0:05:54]} 27. Rc1 {[%emt 0:04:08]} h6 {[%emt 0:03:11]} 28. Be4 {[%emt 0:06:06]} Be6 {[%emt 0:07:24]} 29. Kh2 {[%emt 0:02:45]} Rb2 {[%emt 0:01:56]} 30. Kg1 {[%emt 0:01:47]} Ra2 {[%emt 0:02:20]} 31. Rxa2 {[%emt 0:01:41]} Nxa2 {[%emt 0:00:51]} 32. Rc7 {[%emt 0:01:51]} a5 {[%emt 0:03:57]} 33. Ra7 {[%emt 0:00:01]} Nc3 {[%emt 0:00:13]} 34. Bc2 {[%emt 0:00:13] Prevents Rd1+. The position is equal.} a4 {[%emt 0:00:20]} 35. Bxa4 {[%emt 0:01:55]} Nxa4 {[%emt 0:00:05]} 36. Rxa4 {[%emt 0:00:03] KRB-KRB} Rd1+ {[%emt 0:00:06]} 37. Kh2 {[%emt 0:01:37]} Bd5 {[%emt 0:00:15][%csl Gd5][%cal Rd1h1]} 38. g4 $1 {[%emt 0:00:16]} Rh1+ {[%emt 0:01:38]} 39. Kg3 {[%emt 0:00:01]} Rg1+ {[%emt 0:00:15]} 40. Kf4 {[%emt 0:00:00]} Be6 {[%emt 0:00:00] [#]} 41. Ke4 $146 {Weighted Error Value: White=0.05 (flawless) /Black=0.05 (flawless)} (41. Ra8+ $11 {and White is okay.} Kh7 42. f3) ({Predecessor:} 41. Kf3) 1/2-1/2

[Event "AUT Bundesliga 2022-23"]
[Site "Jenbach"]
[Date "2022.11.04"]
[Round "2.23"]
[White "Breder, Dennis"]
[Black "Deuer, Marius"]
[Result "1-0"]
[ECO "B13"]
[WhiteElo "2450"]
[BlackElo "2326"]
[Annotator "TA"]
[PlyCount "173"]
[EventDate "2022.11.03"]
[EventType "team-tourn"]
[EventCountry "AUT"]
[SourceTitle "playchess.com"]
[Source "ChessBase"]
[SourceQuality "1"]
[TimeControl "40/5400+30:1800+30"]

{[%evp 9,173,10,26,12,18,18,14,3,22,22,49,53,47,36,45,47,86,39,78,71,76,78,90,79,81,-1,-3,-27,0,0,0,0,0,0,0,0,0,0,0,0,0,0,15,0,100,106,89,90,83,87,97,107,105,82,81,81,341,231,238,231,249,234,270,272,301,303,314,323,327,321,321,321,405,406,391,341,446,430,407,329,328,320,329,327,322,321,298,274,291,290,302,301,523,507,1301,1536,1402,1179,2075,2065,1358,1010,9019,7956,1834,1728,6625,0,729,0,6617,6195,4710,2145,8253,7049,12687,1874,7683,9419,29974,29974,29969,29963,29977,29978,29973,3979,1491,742,29968,29969,29969,29970,29967,29970,29969,29967,29967,29969,29967,29965,29984,29978,29981,29980,29985,29986,29986,29987,29987,29987,29987,29988,29988,29987,29987,29988,29988,29985,29985,29981,29988,29986,29989,29990]} 1. e4 {[%emt 0:00:02]} c6 {[%emt 0:00:05]} 2. d4 {[%emt 0:00:04]} d5 {[%emt 0:00:08]} 3. exd5 {[%emt 0:00:02]} cxd5 {[%emt 0:00:11]} 4. Bd3 {[%emt 0:00:03]} Nc6 {[%emt 0:00:16]} 5. c3 {[%emt 0:00:04]} Qc7 {[%emt 0:00:22]} 6. Na3 {[%emt 0:01:12][%cal Bb1a3,Ba3c2,Bc2e3][%mdl 32] B13: Caro-Kann: Exchange Variation and Panov-Botvinnik Attack.} a6 {[%emt 0:05:11]} 7. Nc2 {[%emt 0:00:34]} Nf6 {[%emt 0:09:34]} 8. h3 {[%emt 0:00:10] The position is equal.} g6 {[%emt 0:01:05]} 9. Ne2 {[%emt 0:12:40]} Bf5 {[%emt 0:05:01]} 10. Bxf5 {[%emt 0:00:06]} gxf5 {[%emt 0:00:05]} 11. Bf4 {[%emt 0:00:05]} Qd7 {[%emt 0:02:37]} 12. Ne3 {[%emt 0:07:31]} e6 {[%emt 0:06:27] [#]} 13. Ng3 $146 {[%emt 0:11:06]} (13. g4 $1 $16) ({Predecessor:} 13. g4 fxg4 14. hxg4 Bd6 15. Qd3 O-O-O 16. O-O-O Ne4 17. Rh2 Bxf4 18. Nxf4 Qc7 19. Nexd5 exd5 {0-1 (39) Vokhidov,S (2512)-Sevian,S (2660) Chess.com INT 2020}) 13... Bg7 {[%emt 0:10:53]} 14. Nh5 {[%emt 0:21:30]} Nxh5 {[%emt 0:02:51]} 15. Qxh5 {[%emt 0:00:01]} Ne7 {[%emt 0:03:16]} 16. g4 {[%emt 0:09:21] White is more active.} Ng6 {[%emt 0:05:58]} 17. Bh2 {[%emt 0:08:26]} (17. Bh6 $16 Bxh6 18. Qxh6) 17... f4 $36 {[%emt 0:21:44][%mdl 2048] Black has good play.} 18. Ng2 {[%emt 0:00:54]} e5 {[%emt 0:01:44]} 19. dxe5 {[%emt 0:13:14]} Bxe5 {[%emt 0:03:18][%cal Of4f3]} 20. O-O {[%emt 0:00:29][%cal Oh2f4]} O-O-O {[%emt 0:01:32]} 21. Rad1 {[%emt 0:02:01]} Qc7 {[%emt 0:03:27]} 22. Ne1 {[%emt 0:05:59]} f6 {[%emt 0:05:10]} 23. Nf3 {[%emt 0:00:34] Inhibits d4.} Rhe8 {[%emt 0:02:23]} 24. Rfe1 {[%emt 0:01:25]} Kb8 {[%emt 0:00:53]} 25. Qf5 {[%emt 0:01:07]} Qg7 {[%emt 0:01:37]} 26. Kf1 {[%emt 0:00:54]} Qh6 {[%emt 0:03:13]} (26... Rg8 $11) 27. g5 $1 $16 {[%emt 0:00:51]} Qh5 {[%emt 0:03:28]} 28. Qg4 {[%emt 0:00:05]} Qxg4 {[%emt 0:00:51]} 29. hxg4 {[%emt 0:00:00]} fxg5 {[%emt 0:00:59]} 30. Nxg5 {[%emt 0:00:02]} Re7 {[%emt 0:00:32] Prevents Nf7.} 31. Rd3 {[%emt 0:02:01]} h6 {[%emt 0:00:34]} 32. Nh3 {[%emt 0:02:12][%cal Oh2f4]} Kc7 $2 {[%emt 0:00:32][%mdl 8192] [#]} (32... Rf7 $16 {was called for.}) 33. Bxf4 $1 {[%emt 0:01:18][%mdl 512]} Bxf4 {[%emt 0:00:32]} (33... Rh8 34. Be3) 34. Rxe7+ {[%emt 0:00:05][%mdl 64] Deflection} Nxe7 {[%emt 0:00:04]} 35. Nxf4 $18 {[%emt 0:00:09][%mdl 4096] Endgame Strongly threatening Ne6+. KRN-KRN} Rg8 {[%emt 0:00:50]} 36. f3 {[%emt 0:00:13]} ({Weaker is} 36. Nxd5+ Nxd5 37. Rxd5 Rxg4 $16) 36... Kc6 {[%emt 0:00:34]} 37. Kf2 {[%emt 0:00:35]} Rf8 {[%emt 0:00:29]} 38. Kg3 {[%emt 0:01:07]} Rg8 {[%emt 0:00:26]} 39. Rd1 {[%emt 0:00:21]} Nf5+ {[%emt 0:00:35]} 40. Kf2 {[%emt 0:00:00]} Ne7 {[%emt 0:00:00]} 41. Rh1 {[%emt 0:00:59]} Rh8 {[%emt 0:09:24]} 42. Rh5 {[%emt 0:00:27]} d4 {[%emt 0:07:31]} 43. cxd4 {[%emt 0:00:27]} Kd7 {[%emt 0:00:05]} 44. g5 {[%emt 0:13:12]} Rf8 {[%emt 0:02:51] [#]} 45. gxh6 $1 {[%emt 0:00:26]} Rxf4 {[%emt 0:00:38] KRN-KR} 46. h7 {[%emt 0:00:05]} Ng6 {[%emt 0:00:14] [#]} 47. Rg5 $1 {[%emt 0:00:25]} Rh4 {[%emt 0:02:41]} 48. Rxg6 {[%emt 0:00:04] And now Rg7+ would win.} Rxh7 {[%emt 0:00:04] KR-KR} 49. b3 {[%emt 0:01:03][%cal Bb2b3,Bb3b4][%mdl 32]} Rh1 {[%emt 0:01:37]} 50. a4 {[%emt 0:02:36] Hoping for Rb6.} Rb1 $2 {[%emt 0:03:50]} (50... b5 51. Rxa6 Rb1 52. axb5 Rb2+ 53. Kg3 Rxb3 54. Ra7+ Kd8) 51. Rb6 {[%emt 0:00:11]} Kc7 {[%emt 0:00:05]} (51... Ra1 $142 52. Rxb7+ Kc6) 52. a5 {[%emt 0:01:20]} Ra1 {[%emt 0:02:48]} 53. b4 {[%emt 0:00:02]} Rd1 {[%emt 0:00:10]} 54. Ke3 {[%emt 0:00:05]} Re1+ {[%emt 0:00:10]} 55. Kd3 {[%emt 0:01:35]} Rd1+ {[%emt 0:00:18]} 56. Ke4 {[%emt 0:00:20]} Re1+ {[%emt 0:00:04]} 57. Kd5 {[%emt 0:00:23] Threatens to win with f4.} Rf1 {[%emt 0:00:20]} 58. Ke4 {[%emt 0:05:14]} (58. Rf6 $142 Rb1 59. Rf7+ Kb8 60. Kc5) 58... Re1+ {[%emt 0:00:31]} 59. Kd5 {[%emt 0:01:45]} (59. Kf4 $142 Kc8 60. Rh6) 59... Rf1 {[%emt 0:00:11]} 60. Rf6 {[%emt 0:00:09]} Rb1 {[%emt 0:00:49]} 61. Rf7+ {[%emt 0:03:09]} Kb8 {[%emt 0:01:03]} 62. Kc5 {[%emt 0:01:22] f4 is the strong threat.} Rc1+ {[%emt 0:00:31] [#]} 63. Kd6 $1 {[%emt 0:00:34]} Rc4 {[%emt 0:02:58]} 64. d5 {[%emt 0:00:04] White wants to mate with f4.} Rxb4 {[%emt 0:00:29]} 65. Ke6 {[%emt 0:03:49]} Rb1 {[%emt 0:03:33]} 66. Rf8+ {[%emt 0:03:04]} Ka7 {[%emt 0:00:23]} 67. Rf5 {[%emt 0:00:43]} b5 {[%emt 0:00:38]} 68. axb6+ {[%emt 0:01:45]} (68. d6 $142 Kb7 69. Rf7+ Kb8 70. Rf8+ Ka7 71. d7 Re1+ 72. Kf7 Rd1 73. d8=Q) 68... Kxb6 {[%emt 0:00:22]} 69. Rf8 {[%emt 0:00:09]} (69. f4 $142 Rh1 70. Ke7) 69... Kb7 {[%emt 0:00:40]} 70. d6 {[%emt 0:00:23] White mates.} Re1+ {[%emt 0:00:19]} 71. Kd7 {[%emt 0:00:09]} a5 {[%emt 0:00:43]} 72. Re8 {[%emt 0:00:44]} Rh1 {[%emt 0:00:30]} 73. f4 {[%emt 0:00:18]} a4 {[%emt 0:00:20]} 74. f5 {[%emt 0:00:29]} Rf1 {[%emt 0:00:38]} 75. Re5 {[%emt 0:01:17]} Kb6 {[%emt 0:00:28]} 76. Ke6 {[%emt 0:00:14]} a3 {[%emt 0:00:35]} 77. Re2 {[%emt 0:00:12]} Kb5 {[%emt 0:00:28]} 78. d7 {[%emt 0:00:31]} Rd1 {[%emt 0:00:31]} 79. f6 {[%emt 0:00:20]} Kc6 {[%emt 0:00:30]} 80. Rc2+ {[%emt 0:00:04]} Kb7 {[%emt 0:00:15]} 81. f7 {[%emt 0:00:27]} Re1+ {[%emt 0:00:04]} 82. Kf6 {[%emt 0:00:09]} Rf1+ {[%emt 0:00:22]} 83. Ke7 {[%emt 0:00:08]} Re1+ {[%emt 0:00:06]} 84. Kd8 {[%emt 0:01:33]} Rf1 {[%emt 0:00:06]} 85. Ra2 {[%emt 0:01:10]} Rf3 {[%emt 0:02:08] [#]} 86. Rxa3 $3 {[%emt 0:00:13][%mdl 512]} Rxa3 {[%emt 0:00:07]} (86... Rxf7 87. Ke8) 87. f8=Q {[%emt 0:00:04] Weighted Error Value: White=0.10 (very precise) /Black=0.30} 1-0

[Event "AUT Bundesliga 2022-23"]
[Site "Jenbach"]
[Date "2022.11.04"]
[Round "2.24"]
[White "Neyman, Igor"]
[Black "Kienboeck, Benjamin"]
[Result "1-0"]
[ECO "D02"]
[WhiteElo "2354"]
[BlackElo "2129"]
[Annotator "TA"]
[PlyCount "103"]
[EventDate "2022.11.03"]
[EventType "team-tourn"]
[EventCountry "AUT"]
[SourceTitle "playchess.com"]
[Source "ChessBase"]
[SourceQuality "1"]
[TimeControl "40/5400+30:1800+30"]

{[%evp 9,103,3,19,-2,3,-14,-9,0,0,0,5,1,10,5,9,0,0,0,0,-37,-29,-40,-45,-45,-39,-41,-39,-83,-39,-84,-81,-81,-74,-79,-57,-189,-8,-14,-10,-12,0,0,0,0,0,-82,-73,-50,0,0,60,62,75,71,139,142,146,139,155,146,167,153,220,210,262,256,244,202,324,285,572,570,720,659,997,964,866,844,5618,2616,29959,29960,29962,5414,29972,29974,29974,29975,29975,29976,29976,29976,29976,29977,29977,29976]} 1. d4 {[%emt 0:00:29]} Nf6 {[%emt 0:00:13]} 2. Nf3 {[%emt 0:00:54]} d5 {[%emt 0:00:10]} 3. Bf4 {[%emt 0:02:09]} e6 {[%emt 0:01:20]} 4. e3 {[%emt 0:01:33]} c5 {[%emt 0:00:31]} 5. c3 {[%emt 0:04:29]} Bd6 {[%emt 0:00:42]} 6. Bxd6 {[%emt 0:11:52] D02: 1 d4 d5 2 Nf3 sidelines, including 2...Nf6 3 g3 and 2...Nf6 3 Bf4.} Qxd6 {[%emt 0:00:22]} 7. Ne5 {[%emt 0:00:44]} O-O {[%emt 0:07:59]} 8. Bd3 {[%emt 0:03:15] The position is equal.} b6 {[%emt 0:01:32]} 9. Qe2 {[%emt 0:05:32]} Nbd7 {[%emt 0:05:12][%cal Bb8d7,Bd7f6,Bf6d5,Bd5e7,Be7f5][%mdl 32]} 10. f4 {[%emt 0:02:34]} Bb7 {[%emt 0:00:52]} 11. Nd2 {[%emt 0:02:23]} Ne4 {[%emt 0:02:59] [#]} 12. Nxe4 $146 {[%emt 0:08:27]} ({Predecessor:} 12. O-O f6 13. Nxd7 Qxd7 14. Rad1 Qe7 15. Qf3 Nxd2 16. Rxd2 e5 17. Qh3 e4 18. Be2 {½-½ (35) Eljanov,P (2680)-Van Foreest,J (2618) Chess.com INT 2019}) 12... dxe4 {[%emt 0:00:42]} 13. Bb5 {[%emt 0:01:20]} Nf6 {[%emt 0:11:44]} 14. Qd2 {[%emt 0:10:40]} cxd4 {[%emt 0:04:21]} 15. cxd4 {[%emt 0:01:11]} Rac8 {[%emt 0:02:57]} 16. O-O {[%emt 0:02:18]} Rc7 {[%emt 0:01:44]} 17. Rac1 {[%emt 0:02:19]} Rfc8 {[%emt 0:01:23]} 18. a3 {[%emt 0:01:20]} Nd5 {[%emt 0:03:42]} 19. Rfd1 {[%emt 0:11:20]} f6 {[%emt 0:20:43]} 20. Ng4 {[%emt 0:01:27]} Ne7 {[%emt 0:00:47]} 21. Nf2 {[%emt 0:02:09]} Nf5 {[%emt 0:02:50]} 22. Nh1 {[%emt 0:03:59]} (22. Be2 $15) 22... Rxc1 $2 {[%emt 0:07:43]} (22... Qd5 $19 23. Be2 Qb3 24. Rxc7 Rxc7) 23. Rxc1 $11 {[%emt 0:00:19]} Rxc1+ {[%emt 0:00:07]} (23... Qd8 {seems wilder.} 24. Be2 Bd5 25. Nf2 Nd6) 24. Qxc1 {[%emt 0:00:07]} Nxd4 {[%emt 0:00:10]} 25. exd4 {[%emt 0:07:16]} Qxd4+ {[%emt 0:00:18]} 26. Kf1 {[%emt 0:01:01] Threatens to win with Qc7.} e3 {[%emt 0:01:10]} 27. Be2 {[%emt 0:02:14]} (27. Qc2 $11) 27... Qxf4+ $17 {[%emt 0:00:45]} 28. Kg1 {[%emt 0:00:19]} h5 {[%emt 0:07:41]} ({Black should try} 28... f5 $15) 29. Bxh5 $11 {[%emt 0:03:29]} Ba6 {[%emt 0:03:55]} (29... f5 $11) 30. Qe1 $1 $14 {[%emt 0:02:51]} Qe5 {[%emt 0:09:45] [#]} 31. Ng3 {[%emt 0:00:43] Black is now going downhill.} Qxb2 {[%emt 0:00:30]} (31... f5 $142) 32. Qxe3 $16 {[%emt 0:00:29]} Qb1+ {[%emt 0:00:09]} 33. Kf2 {[%emt 0:00:23]} Qb2+ {[%emt 0:00:33]} 34. Ne2 {[%emt 0:01:22]} e5 {[%emt 0:00:33]} 35. Bf3 {[%emt 0:01:23]} f5 {[%emt 0:00:50]} (35... Kf7 $16 36. g4 Qb5) 36. Qc3 $18 {[%emt 0:02:02]} Qxc3 {[%emt 0:01:03]} 37. Nxc3 {[%emt 0:00:18]} Kf7 {[%emt 0:00:24]} 38. Bc6 {[%emt 0:01:23]} Ke6 {[%emt 0:00:36] [#]} (38... Bd3 $142 39. Ke3 Bf1) 39. Nb5 $1 {[%emt 0:00:30]} Bxb5 $2 {[%emt 0:00:11]} (39... g5 40. Nxa7 Kd6) 40. Bxb5 {[%emt 0:00:00][%mdl 4096] Endgame KB-KP} Kd5 {[%emt 0:00:00]} 41. Bd7 {[%emt 0:03:25]} Ke4 {[%emt 0:05:10]} 42. g3 {[%emt 0:02:59][%cal Bg2g3,Bg3g4,Bg4g5,Bg5h6][%mdl 32]} f4 {[%emt 0:06:38]} 43. g4 {[%emt 0:02:38] Strongly threatening Bf5+.} Kd4 {[%emt 0:01:48]} 44. h4 {[%emt 0:10:40][%cal Bh2h4,Bh4h5][%mdl 32] aiming for g5.} e4 {[%emt 0:00:39]} 45. h5 {[%emt 0:01:05]} Ke5 {[%emt 0:02:42]} 46. g5 {[%emt 0:00:42] Ke2 would kill now.} a6 {[%emt 0:00:55]} 47. h6 {[%emt 0:01:58] White mates.} gxh6 {[%emt 0:00:16]} 48. gxh6 {[%emt 0:00:09]} Kf6 {[%emt 0:00:08] [#]} 49. Bf5 $1 {[%emt 0:01:04][%mdl 512]} e3+ {[%emt 0:00:57]} 50. Kf3 {[%emt 0:00:12]} b5 {[%emt 0:00:36]} 51. Bd3 {[%emt 0:00:31]} Kf7 {[%emt 0:00:19]} 52. Kxf4 {[%emt 0:01:14] Weighted Error Value: White=0.13 (very precise) /Black=0.44} 1-0

[Event "AUT Bundesliga 2022-23"]
[Site "Jenbach"]
[Date "2022.11.04"]
[Round "2.25"]
[White "Dragnev, Valentin"]
[Black "Haba, Petr"]
[Result "0-1"]
[ECO "C43"]
[WhiteElo "2544"]
[BlackElo "2454"]
[Annotator "ChessBase"]
[PlyCount "48"]
[EventDate "2022.11.03"]
[EventType "team-tourn"]
[EventCountry "AUT"]
[SourceTitle "playchess.com"]
[Source "ChessBase"]
[SourceQuality "1"]
[TimeControl "40/5400+30:1800+30"]

1. e4 {[%emt 0:00:04]} e5 {[%emt 0:00:34]} 2. Nf3 {[%emt 0:00:08]} Nf6 {[%emt 0:00:06]} 3. d4 {[%emt 0:00:32]} Nxe4 {[%emt 0:00:27]} 4. Bd3 {[%emt 0:00:08]} Nc6 {[%emt 0:00:26]} 5. Nxe5 {[%emt 0:01:08]} Nxe5 {[%emt 0:00:14]} 6. dxe5 {[%emt 0:00:08]} Nc5 {[%emt 0:00:07]} 7. Bc4 {[%emt 0:00:25]} d6 {[%emt 0:00:16]} 8. Qf3 {[%emt 0:00:55]} Ne6 {[%emt 0:00:12]} 9. exd6 {[%emt 0:01:01]} Bxd6 {[%emt 0:00:08]} 10. Be3 {[%emt 0:01:50]} Bd7 {[%emt 0:00:30]} 11. Nc3 {[%emt 0:04:36]} O-O {[%emt 0:23:00]} 12. O-O-O {[%emt 0:02:17]} Bc6 {[%emt 0:14:24]} 13. Qg4 {[%emt 0:06:04]} Qf6 {[%emt 0:08:41]} 14. Ne4 {[%emt 0:19:28]} Bxe4 {[%emt 0:13:02]} 15. Qxe4 {[%emt 0:00:28]} Bc5 {[%emt 0:00:56]} 16. Kb1 {[%emt 0:08:05]} Bxe3 {[%emt 0:04:18]} 17. Qxe3 {[%emt 0:00:29]} b6 {[%emt 0:00:33]} 18. Rd7 {[%emt 0:02:15]} Rae8 {[%emt 0:01:38]} 19. Rhd1 {[%emt 0:08:00]} a5 {[%emt 0:04:37]} 20. Qg3 {[%emt 0:05:05]} Nc5 {[%emt 0:05:17]} 21. Rxc7 {[%emt 0:15:10]} Ne4 {[%emt 0:02:49]} 22. Qa3 {[%emt 0:08:28]} Qf4 {[%emt 0:02:26]} 23. Rcd7 {[%emt 0:02:07]} Nc5 {[%emt 0:05:13]} 24. Qc3 {[%emt 0:04:07]} Nxd7 {[%emt 0:01:32]} 0-1